Cogmind - Beta 13 X1 @@@ ROGUE MODE // 2023.11.29 @ 21:45:56 Player: AlmondRoll Result: Destroyed by 55-SZM(R) with Subdweller Machine Gun Performance ------------- Evolutions (0) 0 Regions Visited (2) 400 Robots Destroyed (45) 225 Value Destroyed (1111) 1111 Prototype IDs (0) 0 Alien Tech Used (0) 0 Bonus (0) 0 TOTAL SCORE: 1736 Bonus ------- None Cogmind --------- Core Integrity 0/250 Matter 15/300 Energy 100/100 System Corruption 1% Temperature Cool (0) Movement Treading (160) Location -10/Subcaves Parts ------- > --- POWER (1) -------- Subdweller Power Source > --- PROPULSION (2) --- Light Treads Light Treads > --- UTILITY (2) ------ Large Storage Unit Light Armor Plating > --- WEAPON (2) ------- Subdweller Shrapnel Launcher > --- INVENTORY (15) --- Light Treads Spiked Treads Structural Scanner Light Armor Plating Light Armor Plating Hacking Suite Makeshift Hacking Suite Cobbler Unit Shotgun Shotgun Grenade Launcher Multitool Peak State ------------ > --- POWER ------------ Subdweller Power Source > --- PROPULSION ------- Light Treads Light Treads > --- UTILITY ---------- Large Storage Unit Light Armor Plating > --- WEAPON ----------- Light EM Pulse Cannon Light EM Pulse Cannon > --- INVENTORY -------- Light Treads Light Treads Light Treads Light Treads Improved Heat Sink Structural Scanner Light Armor Plating Light Armor Plating Hacking Suite Beam Cannon Shotgun Shotgun Shotgun Grenade Launcher Mining Laser [Rating: 12] Favorites ----------- Power Subdweller Power Source Engine Subdweller Power Source Propulsion Light Treads Treads Light Treads Leg Aluminum Leg Utility Large Storage Unit Device Structural Scanner Storage Large Storage Unit Protection Light Armor Plating Weapon Shotgun Energy Gun Small Laser Energy Cannon Light EM Pulse Cannon Ballistic Gun Shotgun Launcher Subdweller Shrapnel Launcher Build | -11 -10 -10 ------- Run | Jun Mat Sub Slots Evolved . | . . . Power . | . . . Propulsion . | . . . Utility . | . . . Weapon . | . . . Parts Attached 33 | 3 10 20 Power 2 | . . 2 Engine 2 | . . 2 Core . | . . . Reactor . | . . . Propulsion 6 | 2 1 3 Treads 6 | 2 1 3 Leg . | . . . Wheel . | . . . Hover . | . . . Flight . | . . . Utility 15 | 1 6 8 Device 8 | 1 3 4 Storage 1 | . 1 . Processor . | . . . Hackware . | . . . Protection 6 | . 2 4 Artifact . | . . . Weapon 10 | . 3 7 Energy Gun . | . . . Energy Cannon 4 | . . 4 Ballistic Gun 5 | . 3 2 Ballistic Cannon . | . . . Launcher 1 | . . 1 Special Weapon . | . . . Impact Weapon . | . . . Slashing Weapon . | . . . Piercing Weapon . | . . . Special Melee Weapon . | . . . Unidentified Prototypes . | . . . Corrupted Parts 1 | . . 1 System Corruption 1 | . . 1 Parts Lost 3 | . . 3 Power . | . . . Propulsion 1 | . . 1 Utility . | . . . Weapon 2 | . . 2 Highest Loss Streak 2 | . . 2 To Critical Strikes . | . . . Average Slot Usage (%) 99 | . 99 99 Engine 14 | . 14 14 Treads 28 | . 28 28 Device 11 | . 13 10 Storage 14 | . 14 14 Protection 2 | . . 3 Energy Gun 2 | . 5 . Energy Cannon 11 | . . 21 Ballistic Gun 13 | . 22 5 Naked Turns . | . . . Heaviest Build 40 | 13 34 40 Greatest Support 40 | 40 40 40 Greatest Overweight (x) . | . . . Average Overweight (x) . | . . . Largest Inventory Capacity 15 | 8 15 15 Average Capacity 14 | 8 14 15 Most Carried 15 | 6 15 15 Average Carried 13 | 6 12 14 Final Capacity 15 | 8 15 15 Final Carried 15 | 6 15 13 Class Distribution -------------------- 100% | Mutant Dominant Class ---------------- Mutant | -10/Materials Mutant | -10/Subcaves Resources | -11 -10 -10 ----------- Run | Jun Mat Sub Matter Collected 866 | 243 260 363 Remotely . | . . . Salvage Created 1364 | 134 568 662 Parts 108 | 12 57 39 Haulers Intercepted 2 | . 2 . Recyclers Shooed . | . . . Parts Field Recycled . | . . . Retrieved Matter . | . . . Parts Self-Destructed 6 | . . 6 Prevented . | . . . Kills | -11 -10 -10 ------- Run | Jun Mat Sub Combat Hostiles Destroyed 30 | . 13 17 Guns 15 | . 13 2 Cannons 7 | . . 7 AOE 7 | . . 7 Classes Destroyed 11 | 2 7 2 Worker 1 | . 1 . Builder 2 | . 2 . Tunneler 5 | 4 1 . Hauler 2 | . 2 . Recycler 1 | 1 . . Operator 2 | . 2 . Watcher 2 | . 2 . Swarmer 6 | . 6 . Grunt 7 | . 7 . Cobbler 1 | . . 1 Subdweller 17 | . . 17 Best Kill Streak 5 | 3 3 5 Combat Bots Only 5 | . 3 5 Max Kills in Single Turn 2 | 1 2 1 Gunslinging . | . . . Exploded 1 | . . 1 Melee . | . . . Uniques/NPCs Destroyed . | . . . Combat | -11 -10 -10 -------- Run | Jun Mat Sub Damage Taken 1517 | . 356 1161 Core 260 | . 92 168 Absorbed by Shields . | . . . Core Remaining (%) 100 | 100 . . Volleys Fired 137 | 13 48 76 Largest 2 | 2 2 2 Hottest 112 | 60 60 112 Shots Fired 234 | 26 96 112 Gun 146 | 26 96 24 Cannon 73 | . . 73 Launcher 15 | . . 15 Special . | . . . Kinetic 125 | 13 73 39 Thermal 72 | 13 23 36 Explosive . | . . . Electromagnetic 37 | . . 37 Robot Hit Streak 18 | 7 12 18 Robot Miss Streak 5 | 1 5 3 Penetration Max . | . . . Secondary Targets 1 | . 1 . Max Gunslinging Chain 1 | . 1 . Shots Hit Robots 163 | 18 65 80 Core Hits 80 | 8 39 33 Critical Kills 1 | . 1 . Critical Parts Destroyed . | . . . Critical Strikes 1 | . 1 . Destroy 1 | . 1 . Melee Attacks . | . . . Impact . | . . . Slashing . | . . . Piercing . | . . . Sneak Attacks . | . . . Combat Hostiles . | . . . Follow-up Attacks . | . . . Damage Inflicted 3141 | 166 808 2167 Guns 1319 | 166 808 345 Cannons 1023 | . . 1023 Explosions 799 | . . 799 Melee . | . . . Ramming . | . . . Kinetic 1842 | 92 606 1144 Thermal 785 | 74 202 509 Explosive . | . . . Electromagnetic 514 | . . 514 Impact . | . . . Slashing . | . . . Piercing . | . . . Highest Corruption 1 | . . 1 Average Corruption 1 | . . 1 Corruption Purged . | . . . Corruption Blocked . | . . . Effects 6 | . . 6 Message Errors 2 | . . 2 Matter Fused 3 | . . 3 Energy Discharges 1 | . . 1 Overload Shots . | . . . Overflow Damage 23 | . . 23 Projectiles . | . . . Explosions 23 | . . 23 Melee . | . . . Knockbacks . | . . . Impact . | . . . Kinetic . | . . . Secondary . | . . . Self-Inflicted Damage . | . . . Shots . | . . . Rammed . | . . . Targets Rammed . | . . . Kicked . | . . . Crushed . | . . . Highest Temperature 106 | 40 106 97 Average Temperature 32 | 23 31 50 Received Heat Transfer 393 | . 126 267 Siege Activations . | . . . Robots Corrupted 1 | . . 1 Combat Hostiles 1 | . . 1 Parts Fried 3 | . . 3 Impact Corruptions . | . . . Robots Melted . | . . . Combat Hostiles . | . . . Parts Melted 4 | . 1 3 Heat Transferred 1550 | 175 450 925 Parts Sabotaged . | . . . Parts Stolen . | . . . Parts Stripped . | . . . Power Chain Reactions . | . . . Missiles Intercepted . | . . . Alert | -11 -10 -10 ------- Run | Jun Mat Sub Peak Influence 205 | 25 205 . Initial 16 | . 16 . Average 92 | 11 98 . Maximum Alert Level 1 | . 1 . Low Security (%) 97 | 100 97 . Level 1 2 | . 2 . Level 2 . | . . . Level 3 . | . . . Level 4 . | . . . Level 5 . | . . . High Security . | . . . Max Security . | . . . Squads Dispatched 3 | . 3 . Investigation 1 | . 1 . Extermination . | . . . Reinforcement 2 | . 2 . Assault . | . . . Garrison . | . . . Intercept . | . . . Searches Triggered . | . . . Construction Impeded . | . . . Haulers Reinforced . | . . . Active Scanning Responses . | . . . Cargo Convoy Interrupts . | . . . Stealth | -11 -10 -10 --------- Run | Jun Mat Sub Distress Signals 1 | . 1 . Communications Jammed . | . . . Distress Signals . | . . . Times Spotted 36 | . 18 18 Peak Tracking Total 4 | . 4 3 Tactical Retreats 1 | . 1 . Traps | -11 -10 -10 ------- Run | Jun Mat Sub Traps Triggered 2 | . 1 1 Indirectly . | . . . Trap Hack Attempts . | . . . Triggered . | . . . Disarmed . | . . . Reprogrammed . | . . . Reused . | . . . Traps Extracted . | . . . Installed . | . . . Triggered . | . . . Machines | -11 -10 -10 ---------- Run | Jun Mat Sub Machines Disabled 1 | . . 1 Max in Single Turn 1 | . . 1 Machines Repaired . | . . . Machines Sabotaged . | . . . Overloaded Fab Kills . | . . . Hacking | -11 -10 -10 --------- Run | Jun Mat Sub Machines Accessed 2 | . 2 . Terminals 1 | . 1 . Fabricators . | . . . Repair Stations . | . . . Recycling Units 1 | . 1 . Scanalyzers . | . . . Garrison Access . | . . . Total Hacks 9 | . 9 . Successful 6 | . 6 . Failed 3 | . 3 . Catastrophic . | . . . Database Lockouts . | . . . Manual 9 | . 9 . Terminals 4 | . 4 . Fabricators . | . . . Repair Stations . | . . . Recycling Units 5 | . 5 . Scanalyzers . | . . . Garrison Access . | . . . Terminal Hacks 2 | . 2 . Robot Analysis 2 | . 2 . Fabricator Hacks . | . . . Repair Station Hacks . | . . . Recycling Unit Hacks 1 | . 1 . Retrieve Components 1 | . 1 . Scanalyzer . | . . . Garrison Access Hacks . | . . . Unauthorized Hacks 3 | . 3 . Terminals . | . . . Fabricators . | . . . Repair Stations . | . . . Recycling Units 3 | . 3 . Reject 1 | . 1 . Recyclers 1 | . 1 . Mask 1 | . 1 . Scanalyzers . | . . . Garrison Access . | . . . Data Cores Recovered . | . . . Used . | . . . Hacking Detections 3 | . 3 . Full Trace Events . | . . . Feedback Events . | . . . Feedback Blocked . | . . . Robot Schematics Acquired . | . . . Robots Built . | . . . Authchips . | . . . Time . | . . . Total Robot Build Rating . | . . . Part Schematics Acquired . | . . . Parts Built . | . . . Authchips . | . . . Time . | . . . Total Part Build Rating . | . . . Parts Repaired . | . . . Time . | . . . Parts Recycled . | . . . Recycled Matter . | . . . Retrieved Matter . | . . . Retrieved Components 10 | . 10 . Parts Scanalyzed . | . . . Part Schematics Acquired . | . . . Parts Damaged . | . . . Bothacking | -11 -10 -10 ------------ Run | Jun Mat Sub Used RIF Installer . | . . . Robots Hacked . | . . . Non-combat . | . . . Combat . | . . . Robot Hacks Applied . | . . . Relay Couplers Released . | . . . Fabnet Peak Effective % . | . . . Robots Rewired . | . . . Allies Hacked . | . . . Hacks Repelled . | . . . Allies | -11 -10 -10 -------- Run | Jun Mat Sub Total Allies . | . . . Largest Group . | . . . Highest-Rated Group . | . . . Highest-Rated Ally . | . . . Total Orders . | . . . Ally Attacks . | . . . Total Damage . | . . . Kills . | . . . Allies Corrupted . | . . . Allies Melted . | . . . Intel | -11 -10 -10 ------- Run | Jun Mat Sub Robot Analysis Total 2 | . 2 . Derelict Logs Recovered 1 | . . 1 Drone Launches . | . . . Drone Recoveries . | . . . Exploration | -11 -10 -10 ------------- Run | Jun Mat Sub Turns Passed 2586 | 79 1100 1407 Spaces Moved 1244 | 19 540 685 Core . | . . . Treads 1238 | 13 540 685 Legs 6 | 6 . . Wheels . | . . . Hover . | . . . Flight . | . . . Fastest Speed 120 | 120 160 160 Average Speed 159 | 147 160 160 Slowest Speed 160 | 160 160 160 Overloaded Moves . | . . . Propulsion Burnouts . | . . . Robots Hopped . | . . . Cave-ins Triggered . | . . . Exploration Rate (%) 46 | 2 78 59 Regions Visited 2 Branch Regions 1 Pre-discovered Areas 1 | . . 1 Known Exits Taken . | . . . Unknown Exits Taken 2 | 1 1 . Scrap Searched 8 | . . 8 Spaces Dug . | . . . Terrain Destroyed 158 | . . 158 Melee . | . . . Projectile 1 | . . 1 AOE 157 | . . 157 Terrain Rammed . | . . . Walls Destroyed . | . . . Machines Disabled . | . . . Actions | -11 -10 -10 --------- Run | Jun Mat Sub Total 1616 | 46 689 881 Wait 143 | 11 52 80 Move 1242 | 18 539 685 Hop . | . . . Pick Up 32 | 1 24 7 Fast Attach 3 | . . 3 Attach 5 | 1 1 3 Detach . | . . . Swap 25 | 2 9 14 Drop 29 | . 16 13 Fire 137 | 13 48 76 Melee . | . . . Ram . | . . . Kick . | . . . Crush . | . . . Escape Stasis . | . . . Rewire . | . . . Trap . | . . . Miscellaneous . | . . . Route ------- -11/Junkyard -10/Materials (discovered 4 exits: [*Mat x2] / [*Min] / [*Sub]) -10/Subcaves (discovered 1 exit: [*Mat]) History --------- Turn | Location | Event 1 | -11/Junkyard | Discovered new exit (range 3) 80 | -11/Junkyard | Entered Materials 161 | -10/Materials | Discovered new exit (range 6) 306 | -10/Materials | Build established: Mutant 334 | -10/Materials | Discovered new exit (range 5) 787 | -10/Materials | Discovered new exit (range 8) 1153 | -10/Materials | Discovered new exit (range 11) 1180 | -10/Materials | Entered Subcaves 1202 | -10/Subcaves | Learned location of Recycling (-8) 1308 | -10/Subcaves | Disturbed a concealed Subdweller 1624 | -10/Subcaves | Core integrity fell below 50% 1833 | -10/Subcaves | Shifting Twisted Machinery released Sub. Laser 2161 | -10/Subcaves | Disturbed a concealed Subdweller 2293 | -10/Subcaves | Discovered new exit (range 10) 2333 | -10/Subcaves | Core integrity fell below 20% 2561 | -10/Subcaves | Ambushed by Subdweller buried in earth 2563 | -10/Subcaves | Ambushed by Subdweller buried in earth 2565 | -10/Subcaves | Ambushed by Subdweller buried in earth 2569 | -10/Subcaves | Ambushed by Subdweller buried in earth 2587 | -10/Subcaves | Destroyed by 55-SZM(R) with Subdweller Machine Gun Last Messages --------------- 02499_ Lgt. Treads destroyed. 02503_ Sub. Beam Cannon destroyed. 02504_ 1F-KPN(R) destroyed. 02514_ Acquired 36 matter. 02562_ M5-NJ8(R): "GOODGOOD!" 02563_ M5-NJ8(R) destroyed. 02564_ X1-G3Z(R): "ARGHSUB!" 02565_ Sub. Machine Gun destroyed. 02566_ AX-K98(R): "ARGHSUB!" 02567_ X1-G3Z(R) destroyed. 02570_ 29-8U6(R): "ARGHSUB!" 02570_ 8U-PZ6(R): "ARGHSUB!" 02573_ 8U-PZ6(R) destroyed. 02575_ Destroyed Sub. Monowheel. 02577_ 29-8U6(R) destroyed. 02581_ Destroyed Scrap Shield. 02581_ AX-K98(R) destroyed. 02582_ 55-SZM(R): "ARGHSUB!" 02583_ Sub. Power Source shoots sparks and powers down. 02585_ The unstable cave ceiling collapses. Map ----- +----------------------------------------------------+ | ?????????????????????????????????????????????????? | | ?????????????????????????????????????????????????? | | ??????????????????????????????#############??????? | | ?????????????????????????##################??????? | | ????????????????????????######## ## ##??????? | | ????????????????????????### ## ###??????? | | ????????????????????????## ##???????? | | ????????????????????????## ##???????? | | ???????????????????????### ## ###???????? | | ???????????????????????## ### #########?? | | ?????????????????????? "# ## ###" ########## | | ???????????????????? ### ########" " #### | | ????????????????? ##############" " ##" | | ??????????????? ?######????### """ | | ?????????????# ???????????### """ | | ????????????? ??????????#### | | ????????????# R ??????????### ###" | | ?????????????# #?????????## ###" | | ??????????????# #?????????## ### | | ??????????????# ?????????## ### | | ??????????????# #! #?????????### ""#### | | ??????????????# #####?????### < ##### | | ????????????????# ;;##?????### " ## | | ????????????????# ;;;;##????### "" "" | | ?????????????????# ; #???##### ## | | ??????????????????# @ ;##???# ### ## | | ??????????????????##; ; ;#???# #### ## | | ???????????????????### #< ;##### ######### | | ???????????????????# #;# ## ######### | | ??????????????????## #####?### | | ?????????????? ######### | | ??????????????# """ #### | | ??????????????# "## "" ## | | ??????????????? ##?### & | | ??????????????? ##?????## | | ?????????????? ???????#### #" "# | | ?????????????? ?????????#####" "" "# | | ??????????????? ?????????????# ## "" | | ????????????????? ## ??????????????##### ## | | ????????????????????? ??????????????????# ## | | ????????????????????????????????????????# ##### | | ???????????????????????????????????????? ####### | | ??????????????????????????????????????? #?????## | | ?????????????????????????????????????? #?### ### | | ?????????????????????????????????????## ########## | | ?????????????????????????????????????### ## ## ## | | ?????????????????????????????????????## ## | | ?????????????????????????????????????## # | | ??????????????????????????????????? #### ### # | | ??????????????????????????????????? ### #####]## | +----------------------------------------------------+ Best States ------------- Heat Dissipation 25 Energy Generation 15 Energy Capacity 250 Matter Stores 300 Matter Capacity 300 Sight Range 16 Terrain Scan Range 16 Terrain Scan Density 10 Armor Coverage 150 Evasion (%) 40 Recoil Reduction 2 Item Schematics ----------------- None Robot Schematics ------------------ None Fabricated ------------ Nothing Alien Tech Used ----------------- None Achievements -------------- None Challenges ------------ None Game ------ Seed ArmorGravmagJammer Manual? 0 Play Time 00:31:36 Cumulative 388.2 hours Start 2023.11.29 @ 21:17:55 End 2023.11.29 @ 21:45:56 Sessions 1 Manual Loads 0 Difficulty Rogue Special Mode None Game No. 196 Rogue 196 Adventurer 0 Explorer 0 Win Type - Total 14 Types 8/0/4/2/0/0/0/0/0 Lore% 80 Gallery% 83 Achievement% 70 Wizard Run 0 Options --------- ASCII 0 Keyboard 0 Movement Mouse Keybinds 0 Fullscreen 1 Font 12/Smallcaps Map View 76x56 Tactical HUD 1 Map Filters NONE Filters NONE Steam 1 RUN: eb4fd399-c35a-4d95-b41a-740415525f40